fUST/lending_fUST_20260114
["ID","MTS","AMOUNT","RATE_DAILY","PERIOD"]
[401791038,1768377041667,-1092.35,0.00012329,2]
[401791039,1768377041677,-910.29,0.00012329,2]
[401791040,1768377041687,-758.58,0.00012329,2]
[401791041,1768377041697,-632.15,0.00012329,2]
[401791042,1768377041706,-526.79,0.00012329,2]
[401791043,1768377041715,-438.99,0.00012329,2]
[401791044,1768377041724,-365.83,0.00012329,2]
[401791045,1768377041733,-304.86,0.00012329,2]
[401791046,1768377041742,-254.05,0.00012329,2]
[401791047,1768377041751,-211.7,0.00012329,2]
[401791048,1768377041761,-176.42,0.00012329,2]
[401791049,1768377041770,-882.13,0.00012329,2]
[401791050,1768377041780,-508.73768975,0.00012329,2]
[401791052,1768377041790,-508.73768975,0.00012329,2]
[401791054,1768377041800,-508.73768975,0.00012329,2]
[401791056,1768377041809,-508.73768975,0.00012329,2]
[401791058,1768377041818,-508.73768975,0.00012329,2]
[401791060,1768377041827,-508.73768975,0.00012329,2]
[401791062,1768377041836,-508.73768975,0.00012329,2]
[401791064,1768377041846,-508.73768975,0.00012329,2]
[401791066,1768377041856,-508.73768975,0.00012329,2]
[401791068,1768377041865,-508.73768975,0.00012329,2]
[401791069,1768377041874,-508.73768975,0.00012329,2]
[401791071,1768377041884,-508.73768975,0.00012329,2]
[401791073,1768377041892,-508.73768975,0.00012329,2]
[401791075,1768377041901,-508.73768975,0.00012329,2]
[401791077,1768377041910,-508.73768975,0.00012329,2]
[401791079,1768377041919,-508.73768975,0.00012329,2]
[401791081,1768377041928,-508.73768975,0.00012329,2]
[401791083,1768377041937,-508.73768975,0.00012329,2]
[401791085,1768377041948,-508.73768975,0.00012329,2]
[401791087,1768377041958,-508.73768975,0.00012329,2]
[401791089,1768377041967,-508.73768975,0.00012329,2]
[401791091,1768377041976,-508.73768975,0.00012329,2]
[401791093,1768377041985,-508.73768975,0.00012329,2]
[401791095,1768377041994,-508.73768975,0.00012329,2]
[401791097,1768377042003,-508.73768975,0.00012329,2]
[401791098,1768377042013,-508.73768975,0.00012329,2]
[401791100,1768377042022,-508.73768975,0.00012329,2]
[401791102,1768377042031,-508.73768975,0.00012329,2]
[401791104,1768377042041,-508.73768975,0.00012329,2]
[401791106,1768377042050,-508.73768975,0.00012329,2]
[401791108,1768377042059,-508.73768975,0.00012329,2]
[401791110,1768377042068,-508.73768975,0.00012329,2]
[401791112,1768377042077,-508.73768975,0.00012329,2]
[401791114,1768377042087,-508.73768975,0.00012329,2]
[401791116,1768377042096,-508.73768975,0.00012329,2]
[401791118,1768377042106,-508.73768975,0.00012329,2]
[401791120,1768377042115,-508.73768975,0.00012329,2]
[401791122,1768377042124,-508.73768975,0.00012329,2]
[401791124,1768377042133,-508.73768975,0.00012329,2]
[401791126,1768377042142,-508.73768975,0.00012329,2]
[401791128,1768377042151,-508.73768975,0.00012329,2]
[401791130,1768377042161,-508.73768975,0.00012329,2]
[401791132,1768377042170,-508.73768975,0.00012329,2]
[401791134,1768377042179,-508.73768975,0.00012329,2]
[401791136,1768377042188,-508.73768975,0.00012329,2]
[401791138,1768377042199,-508.73768975,0.00012329,2]
[401791140,1768377042208,-508.73768975,0.00012329,2]
[401791142,1768377042218,-533.86053863,0.00012329,2]
[401791144,1768377042227,-533.86053863,0.00012329,2]
[401791146,1768377042237,-533.86053863,0.00012329,2]
[401791148,1768377042246,-533.86053863,0.00012329,2]
[401791150,1768377042256,-533.86053863,0.00012329,2]
[401791152,1768377042265,-533.86053863,0.00012329,2]
[401791153,1768377042276,-533.86053863,0.00012329,2]
[401791155,1768377042285,-533.86053863,0.00012329,2]
[401791157,1768377042294,-533.86053863,0.00012329,2]
[401791159,1768377042303,-533.86053863,0.00012329,2]
[401791161,1768377042312,-533.86053863,0.00012329,2]
[401791163,1768377042321,-533.86053863,0.00012329,2]
[401791165,1768377042330,-533.86053863,0.00012329,2]
[401791167,1768377042338,-533.86053863,0.00012329,2]
[401791169,1768377042347,-533.86053863,0.00012329,2]
[401791171,1768377042357,-533.86053863,0.00012329,2]
[401791173,1768377042365,-533.86053863,0.00012329,2]
[401791175,1768377042374,-533.86053863,0.00012329,2]
[401791177,1768377042383,-533.86053863,0.00012329,2]
[401791179,1768377042392,-533.86053863,0.00012329,2]
[401791181,1768377042401,-533.86053863,0.00012329,2]
[401791182,1768377042410,-533.86053863,0.00012329,2]
[401791184,1768377042419,-533.86053863,0.00012329,2]
[401791186,1768377042429,-533.86053863,0.00012329,2]
[401791188,1768377042438,-533.86053863,0.00012329,2]
[401791190,1768377042449,-533.86053863,0.00012329,2]
[401791192,1768377042458,-533.86053863,0.00012329,2]
[401791194,1768377042467,-533.86053863,0.00012329,2]
[401791196,1768377042476,-533.86053863,0.00012329,2]
[401791198,1768377042486,-533.86053863,0.00012329,2]
[401791200,1768377042495,-533.86053863,0.00012329,2]
[401791202,1768377042504,-533.86053863,0.00012329,2]
[401791204,1768377042513,-533.86053863,0.00012329,2]
[401791206,1768377042522,-533.86053863,0.00012329,2]
[401791208,1768377042532,-533.86053863,0.00012329,2]
[401791210,1768377042541,-533.86053863,0.00012329,2]
[401791213,1768377042550,-533.86053863,0.00012329,2]
[401791214,1768377042560,-870.0,0.0001236,2]
[401791216,1768377042568,-431.0,0.0001236,2]
[401791218,1768377042578,-500.0,0.00012361,2]
[401791220,1768377042587,-22102.3457197,0.00012396,2]
[401791222,1768377042596,-199.94013067,0.00012449,2]
[401791224,1768377042605,-870.0,0.00012497,2]
[401791226,1768377042616,-431.0,0.00012497,2]
[401791228,1768377042629,-151.0,0.000125,2]
[401791230,1768377042639,-2017.55934077,0.00012506,2]
[401791233,1768377042648,-2579.17784983,0.00012556,2]
[401791235,1768377042662,-2604.0,0.00012633,2]
[401791237,1768377042671,-870.0,0.00012634,2]
[401791239,1768377042680,-431.0,0.00012634,2]
[401791241,1768377042690,-500.0,0.00012635,2]
[401791244,1768377042701,-864.0,0.00012674,2]
[401791245,1768377042711,-751.47293991,0.00012691,2]
[401791248,1768377042720,-629.8844447,0.00012698,2]
[401791251,1768377042729,-2116.0,0.000127,2]
[401791252,1768377042739,-151.0,0.000127,2]
[401791255,1768377042748,-2604.0,0.000127,2]
[401791257,1768377042757,-2604.0,0.00012721,2]
[401791261,1768377042767,-2604.0,0.00012755,2]
[401791262,1768377042776,-2604.0,0.00012761,2]
[401791264,1768377042786,-870.0,0.00012771,2]
[401791266,1768377042795,-431.0,0.00012771,2]
[401791268,1768377042804,-629.0,0.00012861,2]
[401791271,1768377042813,-1367.0,0.00012861,2]
[401791272,1768377042822,-2147.0,0.00012861,2]
[401791274,1768377042831,-2604.0,0.00012876,2]
[401791276,1768377042840,-2604.0,0.00012881,2]
[401791278,1768377042849,-4931.6999401,0.00012894,2]
[401791280,1768377042859,-870.0,0.00012908,2]
[401791283,1768377042868,-431.0,0.00012908,2]
[401791284,1768377042877,-500.0,0.00012909,2]
[401791286,1768377042887,-2604.0,0.0001297,2]
[401791288,1768377042895,-773.93646461,0.0001299,2]
[401791290,1768377042904,-151.0,0.00013,2]
[401791292,1768377042914,-171.72292345,0.00013009,2]
[401791295,1768377042923,-870.0,0.00013045,2]
[401791296,1768377042933,-431.0,0.00013045,2]
[401791299,1768377042943,-1699.014292,0.00013071,2]
[401791300,1768377042952,-2674.60743027,0.00013104,2]
[401791302,1768377042962,-2604.0,0.00013118,2]
[401791304,1768377042972,-2604.0,0.00013151,2]
[401791306,1768377042981,-2604.0,0.00013177,2]
[401791308,1768377042990,-870.0,0.00013182,2]
[401791311,1768377043000,-431.0,0.00013182,2]
[401791313,1768377043009,-500.0,0.00013183,2]
[401791314,1768377043019,-2604.0,0.00013189,2]
[401791317,1768377043029,-2116.0,0.000132,2]
[401791319,1768377043039,-500.0,0.00013273,2]
[401791320,1768377043048,-500.0,0.00013273,2]
[401791323,1768377043058,-500.0,0.00013273,2]
[401791324,1768377043068,-500.0,0.00013273,2]
[401791327,1768377043078,-501.85584568,0.00013273,2]
[401791328,1768377043087,-500.0,0.00013273,2]
[401791330,1768377043097,-500.0,0.00013273,2]
[401791333,1768377043106,-500.0,0.00013273,2]
[401791335,1768377043115,-500.0,0.00013273,2]
[401791337,1768377043124,-500.0,0.00013273,2]
[401791339,1768377043134,-500.0,0.00013273,2]
[401791340,1768377043143,-500.0,0.00013273,2]
[401791342,1768377043153,-162.00337471,0.00013273,2]
[401791344,1768377043163,-500.18250774,0.00013273,2]
[401791347,1768377043172,-500.49098579,0.00013273,2]
[401791349,1768377043182,-500.0,0.00013273,2]
[401791351,1768377043192,-500.0,0.00013273,2]
[401791352,1768377043202,-500.21355158,0.00013273,2]
[401791355,1768377043211,-500.0,0.00013273,2]
[401791356,1768377043221,-500.0,0.00013273,2]
[401791368,1768377043328,-500.0,0.00013273,2]
[401791370,1768377043339,-500.0,0.00013273,2]
[401791372,1768377043349,-500.0,0.00013273,2]
[401791374,1768377043358,-500.0,0.00013273,2]
[401791376,1768377043368,-500.0,0.00013273,2]
[401791378,1768377043378,-500.0,0.00013273,2]
[401791380,1768377043388,-500.0,0.00013273,2]
[401791382,1768377043397,-500.0,0.00013273,2]
[401791384,1768377043408,-167.63409657,0.00013273,2]
[401791386,1768377043418,-500.0,0.00013273,2]
[401791388,1768377043427,-500.0,0.00013273,2]
[401791390,1768377043437,-500.0,0.00013273,2]
[401791392,1768377043448,-500.0,0.00013273,2]
[401791394,1768377043458,-500.0,0.00013273,2]
[401791396,1768377043468,-500.0,0.00013273,2]
[401791398,1768377043478,-500.0,0.00013273,2]
[401791400,1768377043487,-500.0,0.00013273,2]
[401791402,1768377043497,-500.0,0.00013273,2]
[401791404,1768377043507,-520.1094365,0.00013273,2]
[401791406,1768377043517,-500.0,0.00013273,2]
[401791408,1768377043526,-500.0,0.00013273,2]
[401791410,1768377043536,-500.0,0.00013273,2]
[401791412,1768377043546,-500.0,0.00013273,2]
[401791414,1768377043556,-501.03457385,0.00013273,2]
[401791416,1768377043565,-500.28056306,0.00013273,2]
[401791418,1768377043576,-195.77760179,0.00013273,2]
[401791420,1768377043586,-500.25674362,0.00013273,2]
[401791422,1768377043595,-500.0,0.00013273,2]
[401791424,1768377043606,-185.624668,0.00013273,2]
[401791426,1768377043617,-500.0,0.00013273,2]
[401791428,1768377043627,-547.00656757,0.00013273,2]
[401791430,1768377043636,-500.0,0.00013273,2]
[401791432,1768377043646,-500.0,0.00013273,2]
[401791434,1768377043658,-500.0,0.00013273,2]
[401791436,1768377043667,-500.0,0.00013273,2]
[401791438,1768377043676,-500.0,0.00013273,2]
[401791440,1768377043687,-500.0,0.00013273,2]
[401791442,1768377043698,-500.20354178,0.00013273,2]
[401791444,1768377043707,-500.0,0.00013273,2]
[401791446,1768377043717,-261.59054001,0.00013273,2]
[401791448,1768377043727,-500.0,0.00013273,2]
[401791450,1768377043736,-713.0,0.00013297,2]
[401791452,1768377043746,-250.0,0.00013305,2]
[401791454,1768377043756,-870.0,0.00013319,2]
[401791456,1768377043766,-431.0,0.00013319,2]
[401791458,1768377043775,-2604.0,0.00013326,2]
[401791460,1768377043785,-2604.0,0.00013338,2]
[401791462,1768377043794,-293.0,0.00013398,2]
[401791464,1768377043804,-823.0,0.00013398,2]
[401791466,1768377043813,-823.0,0.00013398,2]
[401791468,1768377043823,-3220.0,0.00013401,2]
[401791470,1768377043832,-2604.0,0.00013416,2]
[401791472,1768377043842,-728.0,0.00013435,2]
[401791474,1768377043851,-728.0,0.00013435,2]
[401791476,1768377043861,-2604.0,0.00013438,2]
[401791478,1768377043871,-555.15861188,0.00013444,2]
[401791480,1768377043881,-2604.0,0.00013449,2]
[401791482,1768377043891,-870.0,0.00013456,2]
[401791484,1768377043901,-431.0,0.00013456,2]
[401791486,1768377043911,-500.0,0.00013457,2]
[401791488,1768377043920,-2604.0,0.00013468,2]
[401791490,1768377043930,-2604.0,0.000135,2]
[401791492,1768377043940,-870.0,0.00013593,2]
[401791494,1768377043951,-431.0,0.00013593,2]
[401791496,1768377043960,-2604.0,0.00013634,2]
[401791498,1768377043970,-540.90054673,0.00013648,2]
[401791500,1768377043981,-728.0,0.0001365,2]
[401791502,1768377043990,-2773.56790519,0.00013652,2]
[401791504,1768377044000,-300.0,0.00013673,2]
[401791506,1768377044009,-728.0,0.00013685,2]
[401791508,1768377044019,-14150.53090947,0.00013693,2]
[401791510,1768377044030,-686.89169378,0.00013697,2]
[401791512,1768377044039,-500.0,0.00013698,2]
[401791514,1768377044048,-500.0,0.00013698,2]
[401791516,1768377044058,-622.37610142,0.00013698,2]
[401791518,1768377044068,-500.0,0.00013698,2]
[401791520,1768377044078,-500.0,0.00013698,2]
[401791522,1768377044087,-453.49252577,0.00013698,2]
[401791524,1768377044097,-800.23,0.00013698,2]
[401791526,1768377044106,-800.23,0.00013698,2]
[401791528,1768377044115,-800.23,0.00013698,2]
[401791530,1768377044124,-800.23,0.00013698,2]
[401791532,1768377044134,-800.23,0.00013698,2]
[401791534,1768377044143,-800.23,0.00013698,2]
[401791536,1768377044152,-800.23,0.00013698,2]
[401791538,1768377044161,-800.23,0.00013698,2]
[401791540,1768377044171,-800.23,0.00013698,2]
[401791542,1768377044180,-800.23,0.00013698,2]
[401791544,1768377044190,-800.23,0.00013698,2]
[401791546,1768377044200,-800.23,0.00013698,2]
[401791548,1768377044210,-800.23,0.00013698,2]
[401791550,1768377044219,-800.23,0.00013698,2]
[401791552,1768377044228,-800.23,0.00013698,2]
[401791554,1768377044237,-800.23,0.00013698,2]
[401791556,1768377044246,-800.23,0.00013698,2]
[401791558,1768377044256,-800.23,0.00013698,2]
[401791560,1768377044266,-800.23,0.00013698,2]
[401791562,1768377044276,-800.23,0.00013698,2]
[401791564,1768377044286,-800.23,0.00013698,2]
[401791566,1768377044295,-800.23,0.00013698,2]
[401791568,1768377044304,-800.23,0.00013698,2]
[401791570,1768377044313,-800.43872931,0.00013698,2]
[401791572,1768377044322,-500.0,0.00013698,2]
[401791574,1768377044331,-500.0,0.00013698,2]
[401791576,1768377044340,-633.96263391,0.00013698,2]
[401791578,1768377044349,-500.0,0.00013698,2]
[401791580,1768377044358,-500.0,0.00013698,2]
[401791582,1768377044367,-500.0,0.00013698,2]
[401791584,1768377044377,-500.0,0.00013698,2]
[401791586,1768377044386,-497.78018917,0.00013698,2]
[401791588,1768377044396,-500.0,0.00013698,2]
[401791590,1768377044405,-500.0,0.00013698,2]
[401791592,1768377044415,-500.0,0.00013698,2]
[401791594,1768377044424,-500.0,0.00013698,2]
[401791596,1768377044433,-500.0,0.00013698,2]
[401791598,1768377044443,-500.0,0.00013698,2]
[401791600,1768377044452,-582.4382982,0.00013698,2]
[401791602,1768377044461,-1000.0,0.00013698,2]
[401791604,1768377044470,-1000.0,0.00013698,2]
[401791606,1768377044479,-1000.0,0.00013698,2]
[401791608,1768377044489,-1000.0,0.00013698,2]
[401791610,1768377044498,-1000.0,0.00013698,2]
[401791612,1768377044507,-1000.0,0.00013698,2]
[401791614,1768377044516,-1000.0,0.00013698,2]
[401791616,1768377044524,-1017.75755303,0.00013698,2]
[401791618,1768377044533,-500.0,0.00013698,2]
[401791620,1768377044543,-500.0,0.00013698,2]
[401791622,1768377044552,-500.0,0.00013698,2]
[401791624,1768377044561,-500.0,0.00013698,2]
[401791626,1768377044570,-500.0,0.00013698,2]
[401791628,1768377044579,-500.0,0.00013698,2]
[401791630,1768377044588,-500.0,0.00013698,2]
[401791632,1768377044597,-500.0,0.00013698,2]
[401791634,1768377044607,-500.0,0.00013698,2]
[401791636,1768377044617,-500.0,0.00013698,2]
[401791637,1768377044628,-500.0,0.00013698,2]
[401791640,1768377044639,-500.0,0.00013698,2]
[401791642,1768377044648,-500.0,0.00013698,2]
[401791644,1768377044658,-500.0,0.00013698,2]
[401791646,1768377044668,-585.28946164,0.00013698,2]
[401791648,1768377044678,-500.0,0.00013698,2]
[401791650,1768377044688,-500.0,0.00013698,2]
[401791651,1768377044697,-500.0,0.00013698,2]
[401791653,1768377044706,-500.0,0.00013698,2]
[401791655,1768377044715,-550.39437847,0.00013698,2]
[401791658,1768377044725,-500.0,0.00013698,2]
[401791660,1768377044734,-500.0,0.00013698,2]
[401791661,1768377044743,-500.0,0.00013698,2]
[401791664,1768377044752,-453.8287473,0.00013698,2]
[401791665,1768377044761,-287.27602471,0.00013698,2]
[401791668,1768377044771,-518.87817295,0.00013698,2]
[401791670,1768377044780,-504.29229129,0.00013698,2]
[401791672,1768377044789,-500.0,0.00013698,2]
[401791673,1768377044799,-500.0,0.00013698,2]
[401791676,1768377044808,-500.0,0.00013698,2]
[401791678,1768377044818,-559.52204836,0.00013698,2]
[401791679,1768377044827,-500.0,0.00013698,2]
[401791681,1768377044836,-500.0,0.00013698,2]
[401791683,1768377044845,-500.0,0.00013698,2]
[401791686,1768377044855,-500.0,0.00013698,2]
[401791687,1768377044864,-500.0,0.00013698,2]
[401791689,1768377044873,-500.0,0.00013698,2]
[401791691,1768377044882,-500.0,0.00013698,2]
[401791693,1768377044891,-500.0,0.00013698,2]
[401791695,1768377044900,-500.0,0.00013698,2]
[401791697,1768377044909,-500.0,0.00013698,2]
[401791699,1768377044918,-260.74557216,0.00013698,2]
[401791701,1768377044927,-500.0,0.00013698,2]
[401791703,1768377044936,-500.0,0.00013698,2]
[401791705,1768377044946,-500.0,0.00013698,2]
[401791707,1768377044955,-500.0,0.00013698,2]
[401791709,1768377044965,-500.0,0.00013698,2]
[401791711,1768377044975,-500.0,0.00013698,2]
[401791713,1768377044984,-500.0,0.00013698,2]
[401791715,1768377044993,-500.0,0.00013698,2]
[401791717,1768377045002,-500.0,0.00013698,2]
[401791719,1768377045011,-500.0,0.00013698,2]
[401791721,1768377045020,-500.0,0.00013698,2]
[401791723,1768377045030,-500.0,0.00013698,2]
[401791725,1768377045039,-500.0,0.00013698,2]
[401791727,1768377045049,-500.0,0.00013698,2]
[401791730,1768377045059,-500.0,0.00013698,2]
[401791733,1768377045068,-500.0,0.00013698,2]
[401791735,1768377045079,-500.0,0.00013698,2]
[401791736,1768377045088,-500.0,0.00013698,2]
[401791738,1768377045097,-500.0,0.00013698,2]
[401791741,1768377045107,-516.10527878,0.00013698,2]
[401791744,1768377045116,-589.28,0.00013698,2]
[401791745,1768377045127,-589.28,0.00013698,2]
[401791749,1768377045136,-589.28,0.00013698,2]
[401791752,1768377045146,-589.28,0.00013698,2]
[401791754,1768377045155,-589.28,0.00013698,2]
[401791757,1768377045165,-589.28,0.00013698,2]
[401791760,1768377045174,-589.28,0.00013698,2]
[401791763,1768377045184,-589.28,0.00013698,2]
[401791765,1768377045193,-589.28,0.00013698,2]
[401791767,1768377045203,-589.28,0.00013698,2]
[401791769,1768377045214,-589.28,0.00013698,2]
[401791771,1768377045223,-589.28,0.00013698,2]
[401791773,1768377045232,-589.28,0.00013698,2]
[401791775,1768377045241,-589.28,0.00013698,2]
[401791779,1768377045250,-589.28,0.00013698,2]
[401791780,1768377045259,-589.28,0.00013698,2]
[401791783,1768377045268,-589.28,0.00013698,2]
[401791785,1768377045277,-589.28,0.00013698,2]
[401791787,1768377045286,-589.28,0.00013698,2]
[401791789,1768377045295,-589.28,0.00013698,2]
[401791791,1768377045304,-589.28,0.00013698,2]
[401791793,1768377045313,-589.28,0.00013698,2]
[401791795,1768377045322,-589.28,0.00013698,2]
[401791797,1768377045330,-589.38429935,0.00013698,2]
[401791799,1768377045339,-500.0,0.00013698,2]
[401791801,1768377045348,-500.0,0.00013698,2]
[401791803,1768377045357,-500.0,0.00013698,2]
[401791805,1768377045366,-500.0,0.00013698,2]
[401791807,1768377045375,-500.0,0.00013698,2]
[401791809,1768377045384,-500.0,0.00013698,2]
[401791811,1768377045392,-509.06636441,0.00013698,2]
[401791813,1768377045401,-500.0,0.00013699,2]
[401791815,1768377045410,-500.0,0.00013699,2]
[401791817,1768377045419,-59604.9411487,0.00013699,2]
[401791819,1768377045428,-1000.0,0.00013699,2]
[401791821,1768377045436,-1321.2655534,0.00013699,2]
[401791823,1768377045446,-500.0,0.00013699,2]
[401791824,1768377045455,-500.0,0.00013699,2]
[401791826,1768377045464,-500.0,0.00013699,2]
[401791828,1768377045473,-413.79090585,0.00013699,2]
[401791830,1768377045481,-500.0,0.00013699,2]
[401791844,1768377045584,-500.0,0.00013699,2]
[401791846,1768377045594,-500.0,0.00013699,2]
[401791848,1768377045603,-500.32486546,0.00013699,2]
[401791850,1768377045615,-500.0,0.00013699,2]
[401791852,1768377045625,-301.86126485,0.00013699,2]
[401791854,1768377045634,-500.0,0.00013699,2]
[401791856,1768377045644,-252.90578758,0.00013699,2]
[401791857,1768377045654,-501.43010395,0.00013699,2]
[401791859,1768377045664,-500.35014826,0.00013699,2]
[401791861,1768377045672,-500.0,0.00013699,2]
[401791863,1768377045682,-500.0,0.00013699,2]
[401791865,1768377045692,-500.0,0.00013699,2]
[401791867,1768377045702,-500.0,0.00013699,2]
[401791869,1768377045712,-500.0,0.00013699,2]
[401791871,1768377045722,-500.0,0.00013699,2]
[401791873,1768377045732,-500.0,0.00013699,2]
[401791875,1768377045746,-500.0,0.00013699,2]
[401791877,1768377045755,-500.0,0.00013699,2]
[401791879,1768377045764,-500.28466628,0.00013699,2]
[401791881,1768377045774,-504.50322617,0.00013699,2]
[401791883,1768377045783,-500.30572678,0.00013699,2]
[401791885,1768377045793,-500.63930151,0.00013699,2]
[401791886,1768377045802,-500.0,0.00013699,2]
[401791887,1768377045811,-500.0,0.00013699,2]
[401791888,1768377045820,-193.02895498,0.00013699,2]
[401791889,1768377045829,-500.0,0.00013699,2]
[401791890,1768377045838,-500.0,0.00013699,2]
[401791891,1768377045848,-489.04509742,0.00013699,2]
[401791892,1768377045857,-500.0,0.00013699,2]
[401791893,1768377045867,-500.0,0.00013699,2]
[401791894,1768377045876,-500.0,0.00013699,2]
[401791895,1768377045886,-500.70727162,0.00013699,2]
[401791896,1768377045895,-500.0,0.00013699,2]
[401791897,1768377045904,-500.0,0.00013699,2]
[401791898,1768377045915,-500.0,0.00013699,2]
[401791899,1768377045924,-500.0,0.00013699,2]
[401791900,1768377045933,-500.0,0.00013699,2]
[401791901,1768377045943,-500.0,0.00013699,2]
[401791902,1768377045953,-500.0,0.00013699,2]
[401791903,1768377045962,-500.0,0.00013699,2]
[401791904,1768377045972,-500.0,0.00013699,2]
[401791905,1768377045981,-500.0,0.00013699,2]
[401791906,1768377045990,-500.0,0.00013699,2]
[401791907,1768377046000,-500.0,0.00013699,2]
[401791908,1768377046009,-500.0,0.00013699,2]
[401791909,1768377046018,-519.22942888,0.00013699,2]
[401791910,1768377046028,-500.0,0.00013699,2]
[401791911,1768377046037,-500.0,0.00013699,2]
[401791912,1768377046046,-500.0,0.00013699,2]
[401791913,1768377046055,-500.0,0.00013699,2]
[401791914,1768377046064,-500.0,0.00013699,2]
[401791916,1768377046073,-500.0,0.00013699,2]
[401791917,1768377046083,-500.0,0.00013699,2]
[401791919,1768377046092,-500.0,0.00013699,2]
[401791921,1768377046101,-501.82501982,0.00013699,2]
[401791923,1768377046110,-500.0,0.00013699,2]
[401791925,1768377046120,-443.99780341,0.00013699,2]
[401791927,1768377046129,-500.0,0.00013699,2]
[401791929,1768377046141,-500.0,0.00013699,2]
[401791931,1768377046161,-200.0,0.00013699,2]
[401791933,1768377046180,-370.88979349,0.00013699,2]
[401791936,1768377046190,-163.105373,0.00013699,7]
[401791937,1768377046203,-40694.626698,0.00013699,7]
[401791939,1768377046214,-2116.0,0.000137,2]
[401791941,1768377046223,-244.658058,0.000137,7]
[401791944,1768377046234,-101736.566745,0.000137,7]
[401791947,1768377046243,-2604.0,0.00013711,2]
[401791948,1768377046254,-870.0,0.0001373,2]
[401791950,1768377046263,-431.0,0.0001373,2]
[401791953,1768377046272,-500.0,0.00013731,2]
[401791956,1768377046283,-10000.0,0.00013735,2]
[401791959,1768377046295,-10000.0,0.00013735,2]
[401791960,1768377046306,-4343.48,0.00013735,2]
[401791962,1768377046315,-2604.0,0.00013759,2]
[401791964,1768377046325,-10000.0,0.00013763,2]
[401791966,1768377046334,-1306.48,0.00013763,2]
[401791968,1768377046343,-200.0,0.00013786,2]
[401791970,1768377046352,-2604.0,0.00013787,2]
[401791972,1768377046361,-254341.416864,0.00013787,7]
[401791974,1768377046370,-2604.0,0.00013792,2]
[401791976,1768377046380,-200.0,0.0001382,2]
[401791978,1768377046389,-1000.0,0.00013821,2]
[401791980,1768377046398,-1000.0,0.00013821,2]
[401791982,1768377046407,-771.86141758,0.00013821,2]
[401791984,1768377046417,-386.78841051,0.00013821,2]
[401791986,1768377046428,-1000.0,0.00013821,2]
[401791988,1768377046438,-995.76805998,0.00013821,2]
[401791990,1768377046448,-503.76788333,0.00013821,2]
[401791992,1768377046456,-500.0,0.00013821,2]
[401791994,1768377046466,-284.00644743,0.00013821,2]
[401791996,1768377046475,-1000.0,0.00013821,2]
[401791998,1768377046484,-503.63165228,0.00013821,2]
[401792000,1768377046493,-1002.68632401,0.00013821,2]
[401792002,1768377046503,-1000.0,0.00013821,2]
[401792004,1768377046512,-1002.88869488,0.00013821,2]
[401792006,1768377046523,-1000.0,0.00013821,2]
[401792008,1768377046533,-440.24648614,0.00013821,2]
[401792010,1768377046543,-1000.0,0.00013821,2]
[401792012,1768377046553,-1000.0,0.00013821,2]
[401792014,1768377046562,-1000.0,0.00013821,2]
[401792016,1768377046577,-1000.0,0.00013821,2]
[401792018,1768377046587,-1003.99870158,0.00013821,2]
[401792020,1768377046596,-1000.0,0.00013821,2]
[401792022,1768377046605,-1000.0,0.00013821,2]
[401792024,1768377046619,-1000.0,0.00013821,2]
[401792026,1768377046628,-1000.0,0.00013821,2]